Cogmind - Beta 12 @@@ ROGUE MODE // 2023.08.03 @ 23:22:00 Player: Roxy Result: Destroyed by Y-45 Defender with Heavy Assault Rifle Performance ------------- Evolutions (1) 500 Regions Visited (2) 400 Robots Destroyed (10) 50 Value Destroyed (264) 264 Prototype IDs (0) 0 Alien Tech Used (0) 0 Bonus (0) 0 TOTAL SCORE: 1214 Bonus ------- None Cogmind --------- Core Integrity 0/400 Matter 205/300 Energy 100/100 System Corruption 0% Temperature Cool (9) Movement Core (350) Ox6 Location -9/Materials Parts ------- > --- POWER (1) -------- (None) > --- PROPULSION (2) --- (None) > --- UTILITY (3) ------ Large Storage Unit Signal Interpreter > --- WEAPON (3) ------- (None) > --- INVENTORY (15) --- Ion Engine Light Ion Engine Medium Matter Pod (31) Sensor Array Peak State ------------ > --- POWER ------------ Ion Engine > --- PROPULSION ------- Wheel Wheel > --- UTILITY ---------- Large Storage Unit Sensor Array Signal Interpreter > --- WEAPON ----------- EM Pulse Gun EM Pulse Gun Heavy Assault Rifle > --- INVENTORY -------- Ion Engine Light Ion Engine Improved Ion Engine Wheel Medium Matter Pod Shield Generator EM Pulse Gun Assault Rifle [Rating: 11] Favorites ----------- Power Ion Engine Engine Ion Engine Propulsion Wheel Wheel Wheel Utility Signal Interpreter Device Sensor Array Storage Large Storage Unit Processor Signal Interpreter Weapon EM Pulse Gun Energy Gun EM Pulse Gun Ballistic Gun Heavy Assault Rifle Build | -11 -10 -9 ------- Run | Jun Mat Mat Slots Evolved 2 | . . 2 Power . | . . . Propulsion . | . . . Utility 1 | . . 1 Weapon 1 | . . 1 Parts Attached 15 | 4 4 7 Power 2 | 1 . 1 Engine 2 | 1 . 1 Core . | . . . Reactor . | . . . Propulsion 3 | 2 . 1 Treads . | . . . Leg . | . . . Wheel 3 | 2 . 1 Hover . | . . . Flight . | . . . Utility 5 | 1 2 2 Device 2 | . . 2 Storage 2 | 1 1 . Processor 1 | . 1 . Hackware . | . . . Protection . | . . . Artifact . | . . . Weapon 5 | . 2 3 Energy Gun 3 | . 2 1 Energy Cannon . | . . . Ballistic Gun 2 | . . 2 Ballistic Cannon . | . . . Launcher . | . . . Special Weapon . | . . . Impact Weapon . | . . . Slashing Weapon . | . . . Piercing Weapon . | . . . Special Melee Weapon . | . . . Unidentified Prototypes . | . . . Parts Lost 11 | . . 11 Power 2 | . . 2 Propulsion 3 | . . 3 Utility 1 | . . 1 Weapon 5 | . . 5 Highest Loss Streak 11 | . . 11 To Critical Strikes . | . . . Average Slot Usage (%) 87 | . 87 87 Engine 11 | . 14 10 Wheel 23 | . 28 20 Device 3 | . . 5 Storage 12 | . 14 11 Processor 7 | . 2 11 Energy Gun 22 | . 28 19 Ballistic Gun 6 | . . 10 Naked Turns . | . . . Heaviest Build 34 | 10 29 34 Greatest Support 20 | 20 20 20 Greatest Overweight (x) 8 | . 1 8 Average Overweight (x) . | . . 1 Largest Inventory Capacity 15 | 8 15 15 Average Capacity 11 | 6 8 15 Most Carried 9 | 5 7 9 Average Carried 5 | 3 4 6 Final Capacity 15 | 8 15 15 Final Carried 6 | 4 6 4 Class Distribution -------------------- 65% | Mutant 17% | Skirmisher 17% | Gunner Dominant Class ---------------- Mutant | -10/Materials Mutant | -9/Materials Resources | -11 -10 -9 ----------- Run | Jun Mat Mat Matter Collected 291 | 240 51 . Remotely . | . . . Salvage Created 349 | . 235 114 Parts 30 | . 18 12 Haulers Intercepted . | . . . Recyclers Shooed . | . . . Parts Field Recycled . | . . . Retrieved Matter . | . . . Parts Self-Destructed . | . . . Prevented . | . . . Kills | -11 -10 -9 ------- Run | Jun Mat Mat Combat Hostiles Destroyed 6 | . 4 2 Guns 6 | . 4 2 Classes Destroyed 4 | . 3 1 Worker 1 | . 1 . Watcher 3 | . 2 1 Grunt 5 | . 4 1 Sentry 1 | . . 1 Best Kill Streak 7 | . 7 2 Combat Bots Only 4 | . 4 1 Max Kills in Single Turn 1 | . 1 1 Gunslinging . | . . . Exploded . | . . . Melee . | . . . Uniques/NPCs Destroyed . | . . . Combat | -11 -10 -9 -------- Run | Jun Mat Mat Damage Taken 1169 | . 46 1123 Core 420 | . 11 409 Absorbed by Shields 43 | . . 43 Core Remaining (%) 97 | 100 95 . Volleys Fired 24 | . 8 16 Largest 3 | . 2 3 Hottest 103 | . 80 103 Shots Fired 60 | . 16 44 Gun 60 | . 16 44 Cannon . | . . . Launcher . | . . . Special . | . . . Kinetic 20 | . . 20 Thermal . | . . . Explosive . | . . . Electromagnetic 40 | . 16 24 Robot Hit Streak 7 | . 6 7 Robot Miss Streak 2 | . 2 2 Penetration Max . | . . . Secondary Targets 1 | . 1 . Max Gunslinging Chain 1 | . 1 . Shots Hit Robots 35 | . 8 27 Core Hits 16 | . 8 8 Critical Kills . | . . . Critical Parts Destroyed 1 | . . 1 Critical Strikes 1 | . . 1 Destroy 1 | . . 1 Melee Attacks . | . . . Impact . | . . . Slashing . | . . . Piercing . | . . . Sneak Attacks . | . . . Combat Hostiles . | . . . Follow-up Attacks . | . . . Damage Inflicted 559 | . 182 377 Guns 516 | . 139 377 Cannons . | . . . Explosions 43 | . 43 . Melee . | . . . Ramming . | . . . Kinetic 184 | . . 184 Thermal 43 | . 43 . Explosive . | . . . Electromagnetic 332 | . 139 193 Impact . | . . . Slashing . | . . . Piercing . | . . . Highest Corruption . | . . . Average Corruption . | . . . Corruption Purged . | . . . Corruption Blocked . | . . . Overload Shots . | . . . Overflow Damage . | . . . Projectiles . | . . . Explosions . | . . . Melee . | . . . Knockbacks . | . . . Impact . | . . . Kinetic . | . . . Secondary . | . . . Self-Inflicted Damage . | . . . Shots . | . . . Rammed . | . . . Targets Rammed . | . . . Kicked . | . . . Crushed . | . . . Highest Temperature 186 | . 90 186 Average Temperature 50 | . 34 56 Received Heat Transfer 540 | . 24 516 Siege Activations . | . . . Robots Corrupted . | . . . Combat Hostiles . | . . . Parts Fried . | . . . Impact Corruptions . | . . . Robots Melted . | . . . Combat Hostiles . | . . . Parts Melted . | . . . Heat Transferred . | . . . Parts Sabotaged . | . . . Parts Stolen . | . . . Parts Stripped . | . . . Power Chain Reactions 1 | . 1 . Missiles Intercepted . | . . . Alert | -11 -10 -9 ------- Run | Jun Mat Mat Peak Influence 161 | . 142 161 Initial 59 | . . 59 Average 68 | . 47 94 Maximum Alert Level . | . . . Low Security (%) 100 | 100 100 100 Level 1 . | . . . Level 2 . | . . . Level 3 . | . . . Level 4 . | . . . Level 5 . | . . . High Security . | . . . Max Security . | . . . Squads Dispatched 2 | . 1 1 Investigation 1 | . . 1 Extermination . | . . . Reinforcement 1 | . 1 . Assault . | . . . Garrison . | . . . Intercept . | . . . Searches Triggered . | . . . Construction Impeded . | . . . Haulers Reinforced . | . . . Active Scanning Responses . | . . . Cargo Convoy Interrupts . | . . . Stealth | -11 -10 -9 --------- Run | Jun Mat Mat Distress Signals 3 | . 1 2 Communications Jammed . | . . . Distress Signals . | . . . Times Spotted 23 | . 9 14 Peak Tracking Total 9 | . 4 9 Tactical Retreats 1 | . . 1 Traps | -11 -10 -9 ------- Run | Jun Mat Mat Traps Triggered 1 | . . 1 Indirectly . | . . . Trap Hack Attempts . | . . . Triggered . | . . . Disarmed . | . . . Reprogrammed . | . . . Reused . | . . . Traps Extracted . | . . . Installed . | . . . Triggered . | . . . Machines | -11 -10 -9 ---------- Run | Jun Mat Mat Machines Disabled . | . . . Max in Single Turn . | . . . Machines Repaired . | . . . Machines Sabotaged . | . . . Overloaded Fab Kills . | . . . Hacking | -11 -10 -9 --------- Run | Jun Mat Mat Machines Accessed . | . . . Terminals . | . . . Fabricators . | . . . Repair Stations . | . . . Recycling Units . | . . . Scanalyzers . | . . . Garrison Access . | . . . Total Hacks . | . . . Successful . | . . . Failed . | . . . Catastrophic . | . . . Database Lockouts . | . . . Manual . | . . . Terminals . | . . . Fabricators . | . . . Repair Stations . | . . . Recycling Units . | . . . Scanalyzers . | . . . Garrison Access . | . . . Terminal Hacks . | . . . Fabricator Hacks . | . . . Repair Station Hacks . | . . . Recycling Unit Hacks . | . . . Scanalyzer . | . . . Garrison Access Hacks . | . . . Unauthorized Hacks . | . . . Terminals . | . . . Fabricators . | . . . Repair Stations . | . . . Recycling Units . | . . . Scanalyzers . | . . . Garrison Access . | . . . Data Cores Recovered . | . . . Used . | . . . Hacking Detections . | . . . Full Trace Events . | . . . Feedback Events . | . . . Feedback Blocked . | . . . Robot Schematics Acquired . | . . . Robots Built . | . . . Authchips . | . . . Time . | . . . Total Robot Build Rating . | . . . Part Schematics Acquired . | . . . Parts Built . | . . . Authchips . | . . . Time . | . . . Total Part Build Rating . | . . . Parts Repaired . | . . . Time . | . . . Parts Recycled . | . . . Recycled Matter . | . . . Retrieved Matter . | . . . Retrieved Components . | . . . Parts Scanalyzed . | . . . Part Schematics Acquired . | . . . Parts Damaged . | . . . Bothacking | -11 -10 -9 ------------ Run | Jun Mat Mat Used RIF Installer . | . . . Robots Hacked . | . . . Non-combat . | . . . Combat . | . . . Robot Hacks Applied . | . . . Relay Couplers Released . | . . . Fabnet Peak Effective % . | . . . Robots Rewired . | . . . Allies Hacked . | . . . Hacks Repelled . | . . . Allies | -11 -10 -9 -------- Run | Jun Mat Mat Total Allies . | . . . Largest Group . | . . . Highest-Rated Group . | . . . Highest-Rated Ally . | . . . Total Orders . | . . . Ally Attacks . | . . . Total Damage . | . . . Kills . | . . . Allies Corrupted . | . . . Allies Melted . | . . . Intel | -11 -10 -9 ------- Run | Jun Mat Mat Robot Analysis Total . | . . . Derelict Logs Recovered . | . . . Drone Launches . | . . . Drone Recoveries . | . . . Exploration | -11 -10 -9 ------------- Run | Jun Mat Mat Turns Passed 467 | 46 168 253 Spaces Moved 352 | 46 164 142 Core 9 | 5 . 4 Treads . | . . . Legs . | . . . Wheels 343 | 41 164 138 Hover . | . . . Flight . | . . . Fastest Speed 50 | 50 80 95 Average Speed 90 | 76 81 104 Slowest Speed 450 | 80 95 450 Overloaded Moves . | . . . Propulsion Burnouts . | . . . Robots Hopped . | . . . Cave-ins Triggered . | . . . Exploration Rate (%) 19 | 4 33 20 Regions Visited 2 Branch Regions . Pre-discovered Areas . | . . . Known Exits Taken 1 | . 1 . Unknown Exits Taken 1 | 1 . . Scrap Searched . | . . . Spaces Dug . | . . . Terrain Destroyed 3 | . 3 . Melee . | . . . Projectile . | . . . AOE 3 | . 3 . Terrain Rammed . | . . . Walls Destroyed . | . . . Machines Disabled . | . . . Actions | -11 -10 -9 --------- Run | Jun Mat Mat Total 451 | 56 182 213 Wait 44 | . . 44 Move 350 | 45 163 142 Hop . | . . . Pick Up 17 | 7 6 4 Fast Attach 1 | 1 . . Attach 12 | 3 3 6 Detach . | . . . Swap 2 | . 1 1 Drop 1 | . 1 . Fire 24 | . 8 16 Melee . | . . . Ram . | . . . Kick . | . . . Crush . | . . . Escape Stasis . | . . . Rewire . | . . . Trap . | . . . Miscellaneous . | . . . Route ------- -11/Junkyard -10/Materials -9/Materials History --------- Turn | Location | Event 31 | -11/Junkyard | Discovered new exit (range 14) 47 | -11/Junkyard | Entered Materials 188 | -10/Materials | Discovered new exit (range 13) 213 | -10/Materials | Identified exit to Materials 215 | -10/Materials | Entered another Materials area 215 | -9/Materials | Evolved 2 slots: Utility x1, Weapon x1 459 | -9/Materials | Core integrity fell below 50% 464 | -9/Materials | Core integrity fell below 20% 468 | -9/Materials | Destroyed by Y-45 Defender with Heavy Assault Rifle Last Messages --------------- Critical hit (Burn: +26). Critical hit (Burn: +27). Y-45 Defender IFF system glitched. EM Pulse Gun destroyed. Ion Engine destroyed. Wheel destroyed. EM Pulse Gun destroyed. Wheel destroyed. Critical hit (Burn: +37). Shield Generator destroyed. S-10 Pest destroyed. Critical hit (Burn: +37). Assault Rifle destroyed. Wheel destroyed. Hvy. Assault Rifle destroyed. K-01 Serf collects debris. G-47 Trooper IFF system glitched. Imp. Ion Engine destroyed. R-06 Scavenger collects Lgt. Ion Engine. K-01 Serf collects debris. Map ----- +----------------------------------------------------+ | ?????????????????????????????##+#????????????????? | | ????????????????????????????? ????????????????? | | ????????????????????????????? ????????????????? | | ????????????????????????????# ????????????????? | | ????????????????????????????# #?????????????##+# | | ????????????????????????????# #????????????? ? | | ????????????????????????????+ #????????????? ]]? | | ????????????????????????????# #????????????# ]] | | ????????????????????????????# #????????????# ] | | ?????????????#####??????????# #????????????# | | ???????????### ########## #????????????# ! | | ?????????? * r #??###########! ? | | ?????????? #??# /// #%=?? | | ?????????? #??# /// #/### | | ?????????????# #### #??# /// # # | | ?????????????###??????#u Y #??# """ + # | | ??????????????? ?????# % g #### """ # # | | ????????????? ? ????#sggs / """ # # | | ??????????????"" ]???# #### #%! # | | ?????????????""" ??# ###??# """T""" #= # | | ?????????????""" ## #????########### | | ?????????????""" / #??????????????# # | | ?????????????""" ## #??????????????#!* # | | ???????????? ??# #??????????????#% # | | ???????????######?#??####;###+#????????????? /!= # | | ?????????????????????# @ #????????????" # # | | ?????????????????????# """ #??????????? # # | | ?????????????????????# """ #?????????? ?# # | | ?????????????????????# """ #???????######## # | | ?????????????????????# #???????# # + | | ?????????????????????# """ #???????# # # | | ?????????????????????#= """ #???????# + # | | ?????????????????????# ???? #???????# # # | | ?????????????????????# ?????????????#! # # | | ?????????????????????####?????????????# # # | | ??????????????????????????????????????######## # | | ?????????????????????????????????????????????# # | | ?????????????????????????????????????????????# # | | ?????????????????????????????????????????????# + | | ?????????????????????????????????????????????# # | | ?????????????????????????????????????????????# # | | ?????????????????????????????????????????????# # | | ?????????????????????????????????????????????# | | ?????????????????????????????????????????????# | | ?????????????????????????????????????????????# | | ?????????????????????????????????????????????##### | | ????????????????????????????????????????????????# | | ????????????????????????????????????????????????# | | ????????????????????????????????????????????????# | | ????????????????????????????????????????????????# | +----------------------------------------------------+ Best States ------------- Heat Dissipation 28 Energy Generation 12 Energy Capacity 265 Matter Stores 300 Matter Capacity 300 Sight Range 16 Robot Scan Range 14 Terrain Scan Density 10 Evasion (%) 44 Item Schematics ----------------- None Robot Schematics ------------------ None Fabricated ------------ Nothing Alien Tech Used ----------------- None Achievements -------------- None Challenges ------------ None Game ------ Seed PhasingHelicalAccelerator Manual? 0 Play Time 00:09:45 Cumulative 4.0 hours Start 2023.08.03 @ 23:13:12 End 2023.08.03 @ 23:22:00 Sessions 1 Manual Loads 0 Difficulty Rogue Special Mode None Game No. 7 Rogue 7 Adventurer 0 Explorer 0 Win Type - Total 0 Types 0/0/0/0/0/0/0/0/0 Lore% 8 Gallery% 8 Achievement% 9 Wizard Run 0 Options --------- ASCII 0 Keyboard 0 Movement Mouse Keybinds 0 Fullscreen 1 Font 18/SmallcapsGlow Map View 76x50 Tactical HUD 0 Map Filters NONE Filters NONE Steam 1 RUN: a36869e3-d5fc-422d-9477-528dc4e34caa